[Event "Oceania Zonal Open 2023"]
[Site "Melbourne"]
[Date "2023.01.25"]
[Round "5.1"]
[White "Kuybokarov, Temur"]
[Black "Lane, Gary W"]
[Result "1-0"]
[ECO "C78"]
[WhiteElo "2558"]
[BlackElo "2343"]
[Annotator "TA"]
[PlyCount "55"]
[EventDate "2023.01.09"]
[EventType "swiss"]
[EventCountry "AUS"]
[SourceTitle "playchess.com"]
[Source "ChessBase"]
[SourceQuality "1"]
[TimeControl "5400+30"]

{[%evp 22,55,33,20,79,6,20,-13,41,40,124,119,118,117,119,133,138,137,133,125,136,146,289,290,291,265,266,272,261,229,300,323,320,327,420,410]} 1. e4 {[%emt 0:02:22]} e5 {[%emt 0:00:30]} 2. Nf3 {[%emt 0:00:12]} Nc6 {[%emt 0:00:05]} 3. Bb5 {[%emt 0:00:15][%cal Bf1b5,Bb5a4,Ba4b3][%mdl 32]} a6 {[%emt 0:00:07]} 4. Ba4 {[%emt 0:00:17]} Nf6 {[%emt 0:00:06]} 5. O-O {[%emt 0:00:14]} b5 {[%emt 0:00:19]} 6. Bb3 {[%emt 0:00:10]} Bb7 {[%emt 0:00:04]} 7. Re1 {[%emt 0:02:28]} Bc5 {[%emt 0:01:22]} 8. c3 {[%emt 0:00:17]} d6 {[%emt 0:00:23]} 9. d4 {[%emt 0:00:13]} Bb6 {[%emt 0:00:05]} 10. a4 {[%emt 0:00:21]} O-O {[%emt 0:01:59]} 11. Bg5 {[%emt 0:00:51]} h6 {[%emt 0:01:11]} 12. Bh4 {[%emt 0:00:17]} Re8 {[%emt 0:02:42] C78: Ruy Lopez: Archangelsk and Möller Defences.} (12... exd4 $11 13. cxd4 g5) 13. Qd3 $5 {[%emt 0:16:10][%mdl 4] An interesting side line.} (13. axb5 $16 axb5 14. Rxa8 Bxa8 15. d5) 13... Na5 {[%emt 0:16:40] [#]} 14. Ba2 $146 {[%emt 0:08:54]} ({Predecessor:} 14. Bc2 c5 15. d5 c4 16. Qe2 Bc8 17. Nbd2 Bd7 {½-½ Shchekachev,A (2465)-Rausis,I (2460) Moscow4 1992}) 14... c5 {[%emt 0:02:02]} (14... exd4 $11 15. cxd4 Rxe4) 15. axb5 $14 {[%emt 0:05:45] dxc5 would be deadly.} axb5 {[%emt 0:00:31]} ({Black should try} 15... exd4 $14 16. Nbd2 axb5 17. Bxf6 Qxf6 18. Qxb5 dxc3 19. bxc3 Qd8) 16. Bxf6 $16 {[%emt 0:01:08]} Qxf6 {[%emt 0:06:07]} 17. Qxb5 {[%emt 0:00:57]} Qd8 {[%emt 0:04:48]} 18. dxc5 {[%emt 0:02:18]} dxc5 {[%emt 0:06:29]} 19. Na3 {[%emt 0:00:21]} Qc7 {[%emt 0:02:03]} 20. Rad1 {[%emt 0:02:21] Strongly threatening Rd7. White is much more active.} Ba6 {[%emt 0:06:24] [#]} 21. Bxf7+ $1 {[%emt 0:10:25][%mdl 64] Double Attack} Kf8 {[%emt 0:12:53]} (21... Kxf7 $16 {was worth a try.} 22. Rd7+ Kf6 23. Rxc7 Bxb5 24. Nxb5 Rad8) 22. Qd7 $18 {[%emt 0:01:29]} Re7 {[%emt 0:00:31]} 23. Qxc7 {[%emt 0:00:14]} ({Don't do} 23. Qd5 Bb7 $18) 23... Bxc7 {[%emt 0:00:04]} 24. Bd5 {[%emt 0:00:13]} Rb8 {[%emt 0:00:04]} 25. Nh4 {[%emt 0:00:33]} Ke8 {[%emt 0:00:36]} 26. Nf5 {[%emt 0:01:19]} Rd7 {[%emt 0:00:04]} 27. Be6 {[%emt 0:00:33]} Rxd1 {[%emt 0:02:01]} 28. Rxd1 {[%emt 0:00:05] Weighted Error Value: White=0.10 (very precise) /Black=0.43} 1-0

[Event "Oceania Zonal Open 2023"]
[Site "Melbourne"]
[Date "2023.01.25"]
[Round "5.2"]
[White "Liu, Yi"]
[Black "Zhao, Zong-Yuan"]
[Result "0-1"]
[WhiteElo "2303"]
[BlackElo "2488"]
[Annotator "TA"]
[PlyCount "16"]
[EventDate "2023.01.09"]
[EventType "swiss"]
[EventCountry "AUS"]
[SourceTitle "playchess.com"]
[Source "ChessBase"]
[SourceQuality "1"]
[TimeControl "5400+30"]

{[%evp 9,16,0,12,10,10,9,14,-412,-408]} 1. d4 {[%emt 0:00:33]} Nf6 {[%emt 0:08:22]} 2. Nf3 {[%emt 0:00:45]} d5 {[%emt 0:00:35]} 3. Bf4 {[%emt 0:02:02]} c5 {[%emt 0:01:20]} 4. e3 {[%emt 0:00:09]} Nc6 {[%emt 0:00:25]} 5. Nbd2 {[%emt 0:00:09]} Bg4 {[%emt 0:01:32]} 6. h3 {[%emt 0:00:07] D02: 1 d4 d5 2 Nf3 sidelines, including 2...Nf6 3 g3 and 2...Nf6 3 Bf4.} Bxf3 {[%emt 0:03:43]} 7. Nxf3 {[%emt 0:00:08]} e6 {[%emt 0:00:27]} 8. Bb5 $2 {[%emt 0:01:15][%mdl 8192] [#]} (8. Be2 $11) 8... Qa5+ $146 {[%emt 0:00:21] Black took control after the opening.   Weighted Error Value: White=2.45/Black=0.05 (flawless)} ({Predecessor:} 8... Nd7 9. c4 dxc4 10. O-O cxd4 11. Nxd4 e5 12. Nxc6 bxc6 13. Bxc6 exf4 14. exf4 Rc8 {1-0 Sipila,V (2434)-Ibadov,D (2308) Titled Tuesday intern op 15th Nov Early blitz 2022 (4)}) 0-1

[Event "Oceania Zonal Open 2023"]
[Site "Melbourne"]
[Date "2023.01.25"]
[Round "5.3"]
[White "Sardana, Rishi"]
[Black "Gong, Patrick"]
[Result "0-1"]
[ECO "B08"]
[WhiteElo "2459"]
[BlackElo "2292"]
[Annotator "TA"]
[PlyCount "96"]
[EventDate "2023.01.09"]
[EventType "swiss"]
[EventCountry "AUS"]
[SourceTitle "playchess.com"]
[Source "ChessBase"]
[SourceQuality "1"]
[TimeControl "5400+30"]

{[%evp 13,96,25,32,27,35,18,12,20,12,16,18,18,30,23,37,34,27,22,22,23,20,16,33,18,50,27,50,54,35,38,62,35,45,6,31,0,0,0,0,0,0,0,0,0,0,0,17,13,17,0,0,0,35,41,76,75,120,116,101,102,110,39,51,0,0,0,0,0,0,0,0,0,0,-29,0,-179,-176,-171,-159,-158,-166,-202,-215,-749,-736]} 1. e4 {[%emt 0:00:13]} d6 {[%emt 0:06:25]} 2. d4 {[%emt 0:00:09]} Nf6 {[%emt 0:00:08]} 3. Nc3 {[%emt 0:01:00]} g6 {[%emt 0:00:48]} 4. Nf3 {[%emt 0:00:08]} Bg7 {[%emt 0:00:11]} 5. Be2 {[%emt 0:01:03]} O-O {[%emt 0:00:35]} 6. O-O {[%emt 0:00:06]} a6 {[%emt 0:00:32]} 7. a4 {[%emt 0:00:16]} Nc6 {[%emt 0:00:15]} 8. Be3 {[%emt 0:01:32] B08: Pirc Defence: Classical System.} e5 {[%emt 0:02:42]} 9. dxe5 {[%emt 0:10:20]} (9. d5 $5 {[%cal Rd5c6]} Ne7 10. Nd2 $11) 9... dxe5 {[%emt 0:01:33]} 10. Qxd8 {[%emt 0:05:16] The position is equal.} Rxd8 {[%emt 0:02:29]} 11. Bc4 {[%emt 0:00:09]} h6 {[%emt 0:01:52]} 12. h3 {[%emt 0:01:16]} Re8 {[%emt 0:10:37]} 13. Rfd1 {[%emt 0:04:05] [#]} Be6 $146 {[%emt 0:04:55]} ({Predecessor:} 13... Nb4 14. Bb3 Bf8 15. Nxe5 Rxe5 16. Bd4 Bd6 17. f4 Rxe4 18. Nxe4 Nxe4 19. Re1 c5 20. Rxe4 cxd4 {0-1 Gardner,L (1533)-Bulmaga,I (2424) Sitges Sunway 7th 2020 (2)}) 14. Bxe6 {[%emt 0:00:50]} Rxe6 {[%emt 0:00:20]} 15. Nd5 {[%emt 0:00:41]} Rc8 {[%emt 0:02:42]} 16. Nxf6+ {[%emt 0:05:53]} Rxf6 {[%emt 0:00:40]} 17. c3 {[%emt 0:05:17]} Rd6 {[%emt 0:04:38]} 18. g4 {[%emt 0:24:15]} Nd8 {[%emt 0:08:36]} 19. Kf1 {[%emt 0:01:46][%cal Bg1f1,Bf1e2,Be2d3][%mdl 32]} Ne6 {[%emt 0:00:23]} 20. Rxd6 {[%emt 0:04:07]} cxd6 {[%emt 0:01:14]} 21. Ke2 {[%emt 0:00:46]} Kf8 {[%emt 0:01:06]} 22. Kd3 {[%emt 0:00:22]} Ke7 {[%emt 0:00:58]} 23. b4 {[%emt 0:04:56][%cal Bb2b4,Bb4b5][%mdl 32]} Bf6 {[%emt 0:12:32]} 24. b5 {[%emt 0:10:47]} d5 {[%emt 0:06:22]} 25. exd5 {[%emt 0:03:57]} (25. Bxh6 $2 Nc5+ 26. Ke2 Nxe4 27. bxa6 Nxc3+ 28. Kf1 bxa6 $19) 25... e4+ {[%emt 0:00:34][%mdl 64] Decoy} 26. Kxe4 {[%emt 0:00:22]} Rc4+ $1 {[%emt 0:00:39]} 27. Nd4 {[%emt 0:09:20]} Nc5+ {[%emt 0:02:10]} 28. Kf3 {[%emt 0:00:03]} Rxc3 {[%emt 0:00:47]} 29. Kg2 {[%emt 0:00:31]} Rc4 {[%emt 0:01:10]} 30. bxa6 {[%emt 0:00:19][%mdl 64] Deflection} bxa6 {[%emt 0:00:46]} (30... Bxd4 $2 31. a7 Bxa1 32. a8=Q $18 (32. a8=B $2 {too greedy.} Bd4 $19)) 31. Nc6+ {[%emt 0:00:53]} Kd6 {[%emt 0:01:28]} 32. Rd1 {[%emt 0:00:05]} Nxa4 {[%emt 0:01:09]} 33. Bxh6 {[%emt 0:00:20]} Nc3 {[%emt 0:01:46]} 34. Bf8+ {[%emt 0:00:07]} Kc7 {[%emt 0:01:04]} 35. Rc1 {[%emt 0:01:17]} Kb6 {[%emt 0:03:53]} 36. Rc2 {[%emt 0:02:45]} a5 {[%emt 0:03:29]} 37. Kf3 {[%emt 0:02:02]} (37. g5 $16 Bh8 38. Be7) 37... a4 $14 {[%emt 0:01:10]} 38. Ba3 {[%emt 0:00:37]} (38. h4 $1 $14) 38... Nb1 $11 {[%emt 0:00:58][%mdl 64] Discovered Attack} 39. Rxc4 {[%emt 0:00:52]} Nd2+ {[%emt 0:00:06]} 40. Ke2 {[%emt 0:00:05]} Nxc4 {[%emt 0:00:08][%mdl 4096] Endgame KBN-KBN} 41. Bf8 {[%emt 0:00:05]} a3 {[%emt 0:00:47] Threatens to win with ...a2.} 42. Nb4 {[%emt 0:00:35]} Kb5 {[%emt 0:01:39]} 43. Kd3 {[%emt 0:01:13]} Nb6 {[%emt 0:01:46]} 44. Kc2 $2 {[%emt 0:00:40] [#]} (44. Na2 $1 $11) 44... Nxd5 $1 {[%emt 0:00:33][%mdl 576] Deflection, Promotion} 45. Na2 {[%emt 0:00:41]} (45. Nxd5 $2 {perishes.} a2 46. Nxf6 (46. Nc7+ $2 Kc4 $19) 46... a1=Q $19) 45... Ka4 {[%emt 0:00:16]} 46. Bd6 {[%emt 0:00:15] [#]} g5 $1 {[%emt 0:01:22]} 47. f3 {[%emt 0:01:06]} Bb2 {[%emt 0:01:18]} 48. Bc5 $2 {[%emt 0:00:31]} (48. Bb8) 48... Kb5 {[%emt 0:00:42] Weighted Error Value: White=0.32/Black=0.09 (flawless)} 0-1

[Event "Oceania Zonal Open 2023"]
[Site "Melbourne"]
[Date "2023.01.25"]
[Round "5.4"]
[White "Fu, Yihe"]
[Black "Kethro, Michael"]
[Result "1-0"]
[ECO "B48"]
[WhiteElo "2149"]
[BlackElo "2149"]
[Annotator "TA"]
[PlyCount "65"]
[EventDate "2023.01.09"]
[EventType "swiss"]
[EventCountry "AUS"]
[SourceTitle "playchess.com"]
[Source "ChessBase"]
[SourceQuality "1"]
[TimeControl "5400+30"]

{[%evp 14,65,14,14,22,29,34,11,8,8,23,25,13,0,19,0,0,0,0,0,22,0,0,9,33,39,43,10,63,41,65,58,77,68,83,21,29,0,81,90,297,121,225,215,303,313,346,275,328,272,1812,1795,29993,29994]} 1. e4 {[%emt 0:00:02]} c5 {[%emt 0:01:02]} 2. Nf3 {[%emt 0:00:07]} e6 {[%emt 0:01:02]} 3. d4 {[%emt 0:00:09]} cxd4 {[%emt 0:00:09]} 4. Nxd4 {[%emt 0:00:07]} Nc6 {[%emt 0:00:33]} 5. Nc3 {[%emt 0:00:10]} Qc7 {[%emt 0:00:21]} 6. Be3 {[%emt 0:00:15]} a6 {[%emt 0:00:33]} 7. Qd2 {[%emt 0:00:21]} Nf6 {[%emt 0:01:03]} 8. f3 {[%emt 0:03:02]} Be7 {[%emt 0:05:05] B48: Sicilian: Taimanov: 5 Nc3 Qc7 6 Be3 a6 without Be2.} 9. O-O-O {[%emt 0:00:55]} b5 {[%emt 0:01:05]} 10. Nxc6 {[%emt 0:00:09]} dxc6 {[%emt 0:00:55] The position is equal.} 11. g4 {[%emt 0:04:58][%cal Bg2g4,Bg4g5][%mdl 32]} e5 {[%emt 0:01:31]} 12. h4 {[%emt 0:02:16]} Be6 {[%emt 0:02:45]} 13. Qf2 {[%emt 0:02:03]} O-O {[%emt 0:02:22]} 14. g5 {[%emt 0:00:37]} Nh5 {[%emt 0:06:55]} 15. Bh3 {[%emt 0:00:19]} Bxh3 {[%emt 0:01:43]} 16. Rxh3 {[%emt 0:00:15]} Qc8 {[%emt 0:04:28]} 17. Rhh1 {[%emt 0:01:05]} Qe6 {[%emt 0:00:34]} 18. Kb1 {[%emt 0:02:25] [#]} g6 $146 {[%emt 0:04:13]} ({Predecessor:} 18... a5 19. Bc5 a4 20. Rd2 Rfd8 21. Rhd1 Rxd2 22. Rxd2 f6 23. gxf6 Qxf6 24. Bxe7 Qxe7 25. Qb6 Rc8 {1-0 Coll Sola,J (1959)-Sancho Castiello,F (1724) ESP-ch Seniors 65 2021 (3)}) 19. Ne2 {[%emt 0:01:45]} Rad8 {[%emt 0:07:07]} 20. Ng3 {[%emt 0:05:34]} Nf4 {[%emt 0:16:26]} (20... Rxd1+ $11 21. Rxd1 Nxg3 22. Qxg3 Rd8) 21. Bxf4 $14 {[%emt 0:02:06]} exf4 {[%emt 0:03:12]} 22. Ne2 {[%emt 0:00:07]} Rxd1+ {[%emt 0:06:53]} 23. Rxd1 {[%emt 0:00:12]} f6 {[%emt 0:01:00]} 24. Qa7 {[%emt 0:19:44]} (24. Nxf4 $6 Qf7 $11) ({White should play} 24. Qb6 $16) 24... fxg5 $11 {[%emt 0:14:03]} 25. Rd7 {[%emt 0:00:16]} (25. Qxa6 Qc4 26. Nc1 (26. Nd4 $2 Rd8 $19) 26... g4 $17) 25... Bf6 {[%emt 0:04:08]} (25... Qc4 $2 26. Rxe7 Rf7 27. b3 (27. hxg5 Rxe7 28. Qxe7 Qxe2 $11) 27... Rxe7 28. Qb8+ Kg7 29. bxc4 $18) (25... Rf7 $11) 26. hxg5 $16 {[%emt 0:00:30] White is more active.} (26. Rxh7 $2 {is the wrong capture.} Qe5 27. Nc3 Bg7 28. Rxg7+ Qxg7 29. Qxg7+ Kxg7 30. hxg5 Rh8 $19) 26... Be5 {[%emt 0:00:55] [#]} (26... Rd8 $16 {was called for.} 27. Rb7 (27. Rxh7 Rd1+ 28. Nc1 Bd4 $11) 27... Bxg5) 27. Rd3 {[%emt 0:12:05]} (27. Rxh7 $18 {is more deadly. Hoping for Re7.} Rf7 28. Rxf7 Qxf7 29. Qa8+ Kh7 30. Qxc6) 27... Bh8 {[%emt 0:07:37]} (27... h5 $16) 28. Qxa6 $18 {[%emt 0:02:14]} Qe5 {[%emt 0:01:12]} (28... h5 $142 29. gxh6 g5) 29. c3 {[%emt 0:00:07]} (29. Qxc6 $2 Qxb2#) 29... Qc5 {[%emt 0:01:04]} 30. Qb7 {[%emt 0:01:32]} Be5 {[%emt 0:03:36]} 31. Qd7 {[%emt 0:01:34] [#] Strongly threatening Qe6+.} Rb8 $2 {[%emt 0:01:23]} (31... Bg7 32. Nd4 Bxd4) 32. Qe6+ {[%emt 0:00:18]} Kf8 {[%emt 0:01:04]} 33. Rd7 {[%emt 0:00:42] Weighted Error Value: White=0.24 (precise) /Black=0.55} 1-0

[Event "Oceania Zonal Open 2023"]
[Site "Melbourne"]
[Date "2023.01.25"]
[Round "5.5"]
[White "Solomon, Stephen J"]
[Black "Koh, Cedric"]
[Result "1-0"]
[ECO "C67"]
[WhiteElo "2279"]
[BlackElo "1970"]
[Annotator "TA"]
[PlyCount "74"]
[EventDate "2023.01.09"]
[EventType "swiss"]
[EventCountry "AUS"]
[SourceTitle "playchess.com"]
[Source "ChessBase"]
[SourceQuality "1"]
[TimeControl "5400+30"]

{[%evp 17,74,-1,6,-7,0,-29,-8,-56,-67,-160,-145,-148,-140,-153,-81,-78,-34,-47,-30,-50,30,-27,-30,-75,0,-25,23,-16,57,41,60,62,53,48,37,9,112,144,151,57,55,47,51,77,79,11,170,150,245,214,384,381,401,379,354,350,514,526,412]} 1. e4 {[%emt 0:00:08]} e5 {[%emt 0:00:44]} 2. Nf3 {[%emt 0:00:12]} Nc6 {[%emt 0:00:08]} 3. Bb5 {[%emt 0:00:08]} Nf6 {[%emt 0:00:07]} 4. O-O {[%emt 0:00:34]} Nxe4 {[%emt 0:00:07]} 5. d4 {[%emt 0:00:05]} Nd6 {[%emt 0:00:08]} 6. Bg5 {[%emt 0:00:39]} Be7 {[%emt 0:01:06]} 7. Bxe7 {[%emt 0:00:09]} Qxe7 {[%emt 0:00:39]} 8. Bxc6 {[%emt 0:00:05]} dxc6 {[%emt 0:00:22]} 9. dxe5 {[%emt 0:00:04]} Nf5 {[%emt 0:00:24]} 10. Qd2 {[%emt 0:03:18] C67: Ruy Lopez: Berlin Defence: 4 0-0 Nxe4.} Bd7 {[%emt 0:01:03]} 11. Nc3 {[%emt 0:00:09]} O-O-O {[%emt 0:00:16]} 12. Qf4 {[%emt 0:00:25]} (12. Ne4 $11 {is more appropriate.}) 12... h6 $15 {[%emt 0:00:45] [#]} 13. h4 $146 {[%emt 0:00:08] [#]} (13. Rfd1 $15) ({Predecessor:} 13. Rad1 g5 14. Qe4 c5 15. Rfe1 Qe6 16. Na4 Qc6 17. Nc3 Qxe4 18. Nxe4 Bc6 19. Rxd8+ Rxd8 {0-1 Grasis,J (2106)-Antal,J (2252) LAT-SVK email 2011 [15]}) 13... g5 $1 $17 {[%emt 0:03:25][%mdl 512]} 14. Qa4 {[%emt 0:08:09]} Kb8 {[%emt 0:00:37][%cal Rf5h4]} 15. Rad1 {[%emt 0:02:24]} gxh4 {[%emt 0:02:56]} (15... c5 $142 16. Qe4 Nxh4 17. Nxh4 gxh4) 16. Qf4 {[%emt 0:08:20]} Rdg8 {[%emt 0:09:05]} (16... Bc8 {simplifies} 17. Rxd8 Rxd8 18. Re1 Be6) 17. Ne4 {[%emt 0:01:01]} Bc8 {[%emt 0:01:01]} 18. Nf6 {[%emt 0:01:07]} Rg6 {[%emt 0:01:05]} (18... Rd8 $15) 19. Kh2 {[%emt 0:10:09]} (19. Nxh4 Nxh4 20. Qxh4 Qxe5 21. Nd7+ Bxd7 22. Rxd7 Rc8 $15) (19. Rd2 $142) 19... h5 $11 {[%emt 0:03:12]} 20. Rd3 {[%emt 0:06:43]} Ka8 {[%emt 0:18:52]} (20... Nh6 $17 21. Qxh4 (21. Nxh5 $2 {loses.} Ng4+ {[%mdl 64] Discovered Attack} 22. Kh1 Rxh5 $19) 21... Ng4+ 22. Nxg4 Qxh4+ 23. Nxh4 hxg4) 21. Rfd1 {[%emt 0:02:35]} (21. Ng5 $5) 21... a6 {[%emt 0:09:29] Black is weak on the dark squares} (21... Nh6 $142) 22. Qd2 {[%emt 0:04:14] Rd8 is the strong threat. Active counter play!} (22. Nxh4 $2 {perishes.} Nxh4 23. g3 Nf5 $19) (22. Ng5 $5 {[%cal Rd3d7]} Nh6 23. f3 $11 (23. Qxh4 $2 Qxe5+ 24. Kh1 Qxf6 $19)) 22... Be6 {[%emt 0:06:59]} ({Black should play} 22... h3 $11 23. gxh3 (23. g3 Ka7 $11) 23... Qe6) 23. Rd8+ $14 {[%emt 0:04:44]} Rxd8 {[%emt 0:00:17]} 24. Qxd8+ {[%emt 0:00:07]} Qxd8 {[%emt 0:00:06]} 25. Rxd8+ {[%emt 0:00:07]} Ka7 {[%emt 0:00:04]} 26. a3 {[%emt 0:00:34]} h3 {[%emt 0:03:31]} 27. gxh3 $16 {[%emt 0:03:13]} Bc4 {[%emt 0:07:35]} 28. Nxh5 {[%emt 0:10:39] A dynamic duo of knights.} (28. b3 $16 Be2 29. Ne1) 28... Be2 $14 {[%emt 0:04:53]} 29. Nf4 $1 {[%emt 0:00:16][%csl LRe2,LRg6]} Bxf3 {[%emt 0:00:06]} 30. Nxg6 {[%emt 0:00:07]} fxg6 {[%emt 0:00:05] [#]} 31. Rf8 {[%emt 0:01:21]} ({White should try} 31. e6 $1 $16) 31... Bd5 $2 {[%emt 0:01:50] Loses the game.} (31... Kb6 $11 {and Black is okay.}) 32. Rf6 $18 {[%emt 0:00:17][%mdl 1024] White has strong compensation.} Ne7 {[%emt 0:00:58]} (32... Kb6 $16) 33. Kg3 {[%emt 0:05:32]} b5 $2 {[%emt 0:00:50]} (33... Kb6 {keeps fighting.} 34. Kf4 Kc5) 34. Kf4 {[%emt 0:00:37]} Kb7 {[%emt 0:00:19]} 35. e6 {[%emt 0:01:24]} c5 {[%emt 0:01:11]} 36. Ke5 {[%emt 0:00:14] Hoping for Rf7.} Kc6 {[%emt 0:00:10]} (36... Ba2 {might work better.} 37. Rf8 Nc8) 37. h4 {[%emt 0:01:19]} b4 {[%emt 0:02:53] Weighted Error Value: White=0.22 (precise) /Black=0.50} 1-0

[Event "Oceania Zonal Open 2023"]
[Site "Melbourne"]
[Date "2023.01.25"]
[Round "5.6"]
[White "Nemeth, John"]
[Black "Papantoniou, John"]
[Result "0-1"]
[ECO "D34"]
[WhiteElo "2157"]
[BlackElo "2067"]
[Annotator "TA"]
[PlyCount "54"]
[EventDate "2023.01.09"]
[EventType "swiss"]
[EventCountry "AUS"]
[SourceTitle "playchess.com"]
[Source "ChessBase"]
[SourceQuality "1"]
[TimeControl "5400+30"]

{[%evp 17,54,25,30,23,58,-5,13,-4,4,0,27,9,6,8,11,2,0,-29,-33,-41,-29,-22,-27,-91,-93,-91,-87,-121,-111,-150,-96,-191,-165,-243,-215,-212,-202,-703,-703]} 1. Nf3 {[%emt 0:00:13]} d5 {[%emt 0:00:10]} 2. g3 {[%emt 0:00:20]} c5 {[%emt 0:00:06]} 3. c4 {[%emt 0:00:17]} e6 {[%emt 0:00:06]} 4. Bg2 {[%emt 0:00:14]} Nc6 {[%emt 0:01:38]} 5. O-O {[%emt 0:01:20]} Nf6 {[%emt 0:00:16]} 6. cxd5 {[%emt 0:00:45]} exd5 {[%emt 0:00:06]} 7. d4 {[%emt 0:00:07]} Be7 {[%emt 0:00:30]} 8. Nc3 {[%emt 0:02:23]} O-O {[%emt 0:00:17]} 9. Bf4 {[%emt 0:10:30] Recently 9.dxc5 got a lot of attention.} c4 {[%emt 0:09:28]} 10. Ne5 {[%emt 0:04:58] D34: Tarrasch Defence: 6 g3 Nf6 7 Bg2 Be7.} Be6 {[%emt 0:01:07]} 11. Qd2 {[%emt 0:10:35]} (11. Nxc4 $14 dxc4 12. d5) 11... Qb6 $11 {[%emt 0:12:06]} 12. Rad1 {[%emt 0:04:59] The position is equal.} Rfd8 {[%emt 0:02:50] [#]} 13. Be3 $146 {[%emt 0:06:11]} ({Predecessor:} 13. h3 Rac8 14. Be3 Bb4 15. Qc2 Qa5 16. f4 Bxc3 17. bxc3 Ne4 18. f5 Bd7 19. Bxe4 Nxe5 20. dxe5 {1-0 Ploehn,H (2148)-Stauch,E (2089) Regionalliga NW 1112 2011 (3.1)}) 13... Ne8 {[%emt 0:43:35]} 14. Qc2 {[%emt 0:13:34][%cal Oe5c4]} (14. Nxc4 $5 dxc4 15. d5 $14 {[%mdl 64] Discovered Attack}) 14... Qa6 {[%emt 0:07:25]} 15. f4 {[%emt 0:11:57]} (15. Rfe1 {seems wilder.} Rac8 16. a3 Nc7 17. Bf4) 15... f5 $1 {[%emt 0:04:36] [#]} 16. g4 $1 {[%emt 0:06:00]} g6 {[%emt 0:00:04]} 17. g5 {[%emt 0:01:19]} b5 {[%emt 0:01:54]} 18. a3 {[%emt 0:01:57]} Rab8 {[%emt 0:06:12]} 19. h4 {[%emt 0:03:46]} Qb6 {[%emt 0:04:47]} 20. Nxc6 {[%emt 0:03:34]} (20. Bf2 $11 {keeps the balance.}) 20... Qxc6 $17 {[%emt 0:00:00]} 21. h5 {[%emt 0:00:20]} Nd6 {[%emt 0:00:12]} 22. Bf3 {[%emt 0:02:42]} a5 {[%emt 0:00:29][%cal Ba7a5,Ba5b4,Bb4b3][%mdl 32]} 23. Kg2 {[%emt 0:00:45]} Bf8 {[%emt 0:00:55]} (23... b4 $142 24. axb4 axb4) 24. Bc1 {[%emt 0:01:31]} (24. Ra1 $17) 24... b4 $19 {[%emt 0:00:58]} 25. axb4 {[%emt 0:01:10]} (25. Nb1 {might work better.}) 25... axb4 {[%emt 0:00:00]} 26. Nb1 {[%emt 0:00:21]} Ne4 {[%emt 0:01:01] [#] And now ...b3 would win.} 27. Rh1 $2 {[%emt 0:01:38]} (27. Be3) 27... b3 {[%emt 0:00:25] Weighted Error Value: White=0.56/Black=0.08 (flawless)} 0-1

[Event "Oceania Zonal Open 2023"]
[Site "Melbourne"]
[Date "2023.01.25"]
[Round "5.7"]
[White "Morris, James"]
[Black "Stead, Kerry"]
[Result "1-0"]
[ECO "B11"]
[WhiteElo "2456"]
[BlackElo "1952"]
[Annotator "TA"]
[PlyCount "39"]
[EventDate "2023.01.09"]
[EventType "swiss"]
[EventCountry "AUS"]
[SourceTitle "playchess.com"]
[Source "ChessBase"]
[SourceQuality "1"]
[TimeControl "5400+30"]

{[%evp 10,39,56,44,53,26,36,22,39,38,35,36,49,32,34,28,54,32,75,29,50,48,110,93,201,191,370,364,1174,1155,1505,1257]} 1. e4 {[%emt 0:06:25]} c6 {[%emt 0:00:32]} 2. Nc3 {[%emt 0:00:10]} d5 {[%emt 0:00:14]} 3. Nf3 {[%emt 0:00:05]} Bg4 {[%emt 0:00:35]} 4. h3 {[%emt 0:03:12]} Bxf3 {[%emt 0:00:11]} 5. Qxf3 {[%emt 0:00:07]} dxe4 {[%emt 0:00:08]} 6. Nxe4 {[%emt 0:00:16]} Nd7 {[%emt 0:00:12] 6...Nd7 is better than 6...e6. B11: Caro-Kann: Two Knights Variation.} 7. g3 {[%emt 0:05:35]} Ngf6 {[%emt 0:00:17]} 8. Bg2 {[%emt 0:00:20]} e6 {[%emt 0:01:05] The position is equal.} 9. O-O {[%emt 0:00:19]} Nxe4 {[%emt 0:00:21]} 10. Qxe4 {[%emt 0:00:06]} Nf6 {[%emt 0:00:12]} 11. Qe2 {[%emt 0:00:05][%cal Ob2b4]} Bd6 {[%emt 0:00:26]} 12. d4 {[%emt 0:00:06]} Qc7 {[%emt 0:01:45] [#]} 13. b3 $146 {[%emt 0:03:46]} ({Predecessor:} 13. c3 O-O 14. Bg5 Nd7 15. a4 Rfe8 16. a5 e5 17. d5 e4 18. dxc6 Qxc6 {0-1 Bosnjak,P (2255)-Hasangatin,R (2502) Titled Tuesday intern op 17th April blitz 2017 (9)}) 13... O-O-O {[%emt 0:01:11]} 14. Bb2 {[%emt 0:00:33]} (14. c4 $16) 14... Rhe8 {[%emt 0:00:17]} 15. c4 {[%emt 0:00:33]} c5 {[%emt 0:01:14]} (15... h5 $1 $14) 16. b4 {[%emt 0:15:48]} cxb4 {[%emt 0:03:22]} (16... cxd4 $16 17. c5 Be7) 17. a3 {[%emt 0:00:19]} bxa3 $2 {[%emt 0:01:16]} (17... b3 {was worth a try.} 18. Qf3 e5) 18. Bxa3 $18 {[%emt 0:05:57] This pair of bishops is nice.} b6 $2 {[%emt 0:24:31] [#]} (18... Bxa3 19. Rxa3 b6) 19. c5 $1 {[%emt 0:00:45][%mdl 512]} bxc5 {[%emt 0:01:32]} (19... Nd5 20. cxd6) 20. dxc5 {[%emt 0:02:09] Weighted Error Value: White=0.14 (very precise) /Black=0.43} 1-0